Cogmind - Beta 13 @@@ ROGUE MODE // 2024.07.01 @ 18:44:47 Player: AbsoluteZero Result: Destroyed by 5D-72Y(l) with Ripper Performance ------------- Evolutions (3) 1500 Regions Visited (6) 1200 Robots Destroyed (41) 205 Value Destroyed (1265) 1265 Prototype IDs (10) 200 Alien Tech Used (0) 0 Bonus (77) 77 TOTAL SCORE: 4447 Bonus ------- High Alert Combat Kills 77 Cogmind --------- Core Integrity 0/700 Matter 277/300 Energy 100/100 System Corruption 0% Temperature Cool (0) Movement Core (350) Ox6 Location -7/Lower Caves Parts ------- > --- POWER (1) -------- (None) > --- PROPULSION (4) --- (None) > --- UTILITY (6) ------ Large Storage Unit Improved Signal Interpreter Advanced Targeting Computer > --- WEAPON (2) ------- (None) > --- INVENTORY (15) --- Improved Ion Engine Titanium Leg Improved Heat Sink Small Storage Unit Medium Storage Unit High-capacity Matter Pod (200) Matter Filter Light Armor Plating System Shield Improved EM Pulse Cannon Improved EM Pulse Cannon Grenade Launcher Improved Grenade Launcher Heavy Rocket Launcher Makeshift Sword Peak State ------------ > --- POWER ------------ Nuclear Core > --- PROPULSION ------- Aluminum Leg Improved Aluminum Leg Carbon-fiber Leg Titanium Leg > --- UTILITY ---------- Large Storage Unit Improved Sensor Array Improved Signal Interpreter Advanced Targeting Computer Advanced Targeting Computer Matter Filter > --- WEAPON ----------- Gauss Cannon Gauss Cannon > --- INVENTORY -------- Improved Ion Engine Titanium Leg Improved Heat Sink Small Storage Unit Medium Storage Unit High-capacity Matter Pod Light Armor Plating Light Armor Plating System Shield Improved EM Pulse Cannon Improved EM Pulse Cannon Grenade Launcher Improved Grenade Launcher Heavy Rocket Launcher Scythe [Rating: 40] Favorites ----------- Power Nuclear Core Engine Light Ion Engine Power Core Nuclear Core Propulsion Improved Aluminum Leg Leg Improved Aluminum Leg Wheel Wheel Flight Unit VTOL Module Utility Advanced Targeting Computer Device Improved Sensor Array Storage Large Storage Unit Processor Advanced Targeting Computer Hackware Hacking Suite Protection Hardened Medium Armor Plating Weapon Gauss Cannon Ballistic Gun Assault Rifle Ballistic Cannon Gauss Cannon Launcher Grenade Launcher Slashing Weapon Scythe Build | -11 -10 -10 -9 -8 -7 -7 ------- Run | Yrd Mat Min Mat Mat Fac Low Slots Evolved 6 | . . . 2 2 2 . Power . | . . . . . . . Propulsion 2 | . . . . 2 . . Utility 4 | . . . 2 . 2 . Weapon . | . . . . . . . Parts Attached 59 | 6 1 1 4 30 12 5 Power 4 | 1 . . . 3 . . Engine 3 | 1 . . . 2 . . Core 1 | . . . . 1 . . Reactor . | . . . . . . . Propulsion 13 | 2 . . 1 10 . . Treads . | . . . . . . . Leg 10 | . . . . 10 . . Wheel 2 | 2 . . . . . . Hover . | . . . . . . . Flight 1 | . . . 1 . . . Utility 22 | 1 1 . 1 9 8 2 Device 4 | . 1 . . 1 2 . Storage 5 | 1 . . . 4 . . Processor 4 | . . . . 2 2 . Hackware 2 | . . . . . 2 . Protection 7 | . . . 1 2 2 2 Artifact . | . . . . . . . Weapon 20 | 2 . 1 2 8 4 3 Energy Gun . | . . . . . . . Energy Cannon . | . . . . . . . Ballistic Gun 3 | 2 . 1 . . . . Ballistic Cannon 10 | . . . . 6 2 2 Launcher 4 | . . . 2 2 . . Special Weapon . | . . . . . . . Impact Weapon . | . . . . . . . Slashing Weapon 3 | . . . . . 2 1 Piercing Weapon . | . . . . . . . Special Melee Weapon . | . . . . . . . Unidentified Prototypes . | . . . . . . . Parts Lost 15 | . . 1 6 . . 8 Power 2 | . . . 1 . . 1 Propulsion 6 | . . 1 2 . . 3 Utility 3 | . . . . . . 3 Weapon 4 | . . . 3 . . 1 Highest Loss Streak 7 | . . 1 4 . . 7 To Critical Strikes . | . . . . . . . Average Slot Usage (%) 88 | . 86 93 30 88 100 96 Engine 4 | . 14 14 3 8 . . Core 3 | . . . . . 7 6 Leg 24 | . . . . 29 30 28 Wheel 2 | . 28 22 3 . . . Device 6 | . 1 14 4 3 7 7 Storage 7 | . 14 14 4 7 7 7 Processor 12 | . . . . 9 18 23 Hackware 2 | . . . . . 6 . Protection 5 | . . . 2 9 3 6 Ballistic Gun 3 | . 28 28 8 . . . Ballistic Cannon 12 | . . . . 17 14 13 Naked Turns 36 | . . . 36 . . . Heaviest Build 52 | 12 13 13 12 50 48 52 Greatest Support 64 | 26 26 26 10 64 55 55 Greatest Overweight (x) 1 | . . 1 1 1 . . Average Overweight (x) . | . . . . . . . Largest Inventory Capacity 15 | 8 8 8 8 15 15 15 Average Capacity 12 | 6 8 8 6 12 15 15 Most Carried 15 | 1 2 6 5 15 15 15 Average Carried 11 | . 1 3 4 11 14 14 Final Capacity 15 | 8 8 8 5 15 15 15 Final Carried 15 | 1 2 5 5 15 15 15 Class Distribution -------------------- 81% | Mutant 9% | Scavenger-Mutant 8% | Hacker-Mutant Dominant Class ---------------- Mutant | -10/Materials Mutant | -10/Mines Mutant | -9/Materials Mutant | -8/Materials Mutant | -7/Factory Mutant | -7/Lower Caves Resources | -11 -10 -10 -9 -8 -7 -7 ----------- Run | Yrd Mat Min Mat Mat Fac Low Matter Collected 1959 | 152 109 292 86 490 486 344 Remotely . | . . . . . . . Salvage Created 1277 | . 109 35 88 574 235 236 Parts 88 | . 8 5 10 55 7 3 Haulers Intercepted . | . . . . . . . Recyclers Shooed 1 | . . . . 1 . . Parts Field Recycled . | . . . . . . . Retrieved Matter . | . . . . . . . Parts Self-Destructed 1 | . . . . . . 1 Prevented . | . . . . . . . Kills | -11 -10 -10 -9 -8 -7 -7 ------- Run | Yrd Mat Min Mat Mat Fac Low Combat Hostiles Destroyed 36 | . 3 3 6 17 4 3 Guns 6 | . 3 3 . . . . Cannons 18 | . . . . 11 4 3 AOE 12 | . . . 6 6 . . Classes Destroyed 11 | . 1 1 1 4 1 3 Tunneler 1 | . . . . 1 . . Recycler 2 | . . . . 1 1 . Watcher 2 | . . . . 1 1 . Swarmer 14 | . . 3 4 7 . . Grunt 9 | . 3 . . 2 2 2 Brawler 1 | . . . . . . 1 Sentry 10 | . . . 2 7 1 . Hunter 1 | . . . . 1 . . Programmer 1 | . . . . . 1 . Decomposer 4 | . . . . . . 4 Packrat 1 | . . . . . . 1 Samaritan 1 | . . . . . . 1 Best Kill Streak 6 | . 2 2 6 5 2 3 Combat Bots Only 6 | . 2 2 6 5 2 3 Max Kills in Single Turn 3 | . 1 1 3 3 1 2 Gunslinging . | . . . . . . . Exploded 3 | . . . 3 3 . . Melee . | . . . . . . . Uniques/NPCs Destroyed . | . . . . . . . Combat | -11 -10 -10 -9 -8 -7 -7 -------- Run | Yrd Mat Min Mat Mat Fac Low Hostile Shots Fired 283 | . 12 23 72 56 27 93 Missed 76 | . 2 5 28 14 10 17 Damage Taken 3353 | . 116 157 669 558 213 1640 Core 1086 | . 11 27 301 37 11 699 Absorbed by Shields . | . . . . . . . Core Remaining (%) 75 | 100 . 84 24 93 . . Volleys Fired 99 | . 10 14 14 31 16 14 Largest 2 | . 2 2 2 2 2 2 Hottest 96 | . 40 40 40 96 96 96 Shots Fired 185 | . 20 28 19 59 31 28 Gun 62 | . 20 28 14 . . . Cannon 115 | . . . . 56 31 28 Launcher 8 | . . . 5 3 . . Special . | . . . . . . . Kinetic 177 | . 20 28 14 56 31 28 Thermal . | . . . . . . . Explosive 6 | . . . 5 1 . . Electromagnetic 2 | . . . . 2 . . Robot Hit Streak 14 | . 6 7 6 9 14 5 Robot Miss Streak 4 | . 2 4 2 3 1 1 Penetration Max 1 | . . . . . . 1 Secondary Targets . | . . . . . . . Shots Hit Robots 126 | . 15 14 13 37 20 27 Core Hits 60 | . 5 4 11 22 9 9 Critical Kills . | . . . . . . . Critical Parts Destroyed 1 | . . 1 . . . . Critical Strikes 9 | . . 1 . 6 1 1 Destroy 1 | . . 1 . . . . Blast 8 | . . . . 6 1 1 Melee Attacks 8 | . . . . . 2 6 Impact . | . . . . . . . Slashing 8 | . . . . . 2 6 Piercing . | . . . . . . . Sneak Attacks 6 | . . . . . . 6 Combat Hostiles . | . . . . . . . Follow-up Attacks . | . . . . . . . Damage Inflicted 3698 | . 194 186 473 1296 534 1015 Guns 474 | . 194 186 94 . . . Cannons 2196 | . . . . 1025 534 637 Explosions 650 | . . . 379 271 . . Melee 378 | . . . . . . 378 Ramming . | . . . . . . . Kinetic 2670 | . 194 186 94 1025 534 637 Thermal . | . . . . . . . Explosive 514 | . . . 379 135 . . Electromagnetic 136 | . . . . 136 . . Impact . | . . . . . . . Slashing 378 | . . . . . . 378 Piercing . | . . . . . . . Highest Corruption . | . . . . . . . Average Corruption . | . . . . . . . Corruption Purged . | . . . . . . . Corruption Blocked . | . . . . . . . Overload Shots . | . . . . . . . Overflow Damage 239 | . . . 36 4 32 167 Projectiles 35 | . . . . . 32 3 Explosions 40 | . . . 36 4 . . Melee 164 | . . . . . . 164 Knockbacks 11 | . . . . 2 6 3 Impact . | . . . . . . . Kinetic 11 | . . . . 2 6 3 Secondary . | . . . . . . . Self-Inflicted Damage 130 | . . . 104 26 . . Shots 5 | . . . 3 2 . . Rammed . | . . . . . . . Targets Rammed . | . . . . . . . Kicked . | . . . . . . . Crushed . | . . . . . . . Highest Temperature 351 | . . . 2 351 216 288 Average Temperature 90 | . . . 2 87 66 121 Received Heat Transfer 1155 | . 60 . 246 126 90 633 Effects 1 | . . . . 1 . . Short Circuit 1 | . . . . 1 . . Siege Activations . | . . . . . . . Robots Corrupted . | . . . . . . . Combat Hostiles . | . . . . . . . Parts Fried . | . . . . . . . Impact Corruptions . | . . . . . . . Robots Melted . | . . . . . . . Combat Hostiles . | . . . . . . . Parts Melted . | . . . . . . . Heat Transferred . | . . . . . . . Parts Sabotaged . | . . . . . . . Parts Stolen . | . . . . . . . Parts Stripped . | . . . . . . . Power Chain Reactions . | . . . . . . . Alert | -11 -10 -10 -9 -8 -7 -7 ------- Run | Yrd Mat Min Mat Mat Fac Low Peak Influence 514 | . 133 111 421 514 301 . Initial 233 | . . 51 42 177 233 . Average 220 | . 47 74 142 389 111 . Maximum Alert Level 2 | . . . 2 2 1 . Low Security (%) 51 | 100 100 100 75 8 75 . Level 1 29 | . . . 23 46 24 . Level 2 18 | . . . 1 44 . . Level 3 . | . . . . . . . Level 4 . | . . . . . . . Level 5 . | . . . . . . . High Security . | . . . . . . . Max Security . | . . . . . . . Squads Dispatched 9 | . 2 . 2 3 2 . Investigation 2 | . 1 . 1 . . . Extermination 1 | . . . . . 1 . Reinforcement 4 | . 1 . 1 1 1 . Assault . | . . . . . . . Garrison 2 | . . . . 2 . . Intercept . | . . . . . . . Searches Triggered . | . . . . . . . Construction Impeded . | . . . . . . . Haulers Reinforced . | . . . . . . . Active Scanning Responses . | . . . . . . . Cargo Convoy Interrupts . | . . . . . . . Stealth | -11 -10 -10 -9 -8 -7 -7 --------- Run | Yrd Mat Min Mat Mat Fac Low Distress Signals 4 | . . 1 1 1 1 . Communications Jammed . | . . . . . . . Distress Signals . | . . . . . . . Times Spotted 58 | . 5 3 13 22 8 7 Peak Tracking Total 9 | . 2 3 9 5 2 4 Tactical Retreats 4 | . . . 2 1 1 . Traps | -11 -10 -10 -9 -8 -7 -7 ------- Run | Yrd Mat Min Mat Mat Fac Low Traps Triggered 1 | . . . . 1 . . Indirectly . | . . . . . . . Trap Hack Attempts . | . . . . . . . Triggered . | . . . . . . . Disarmed . | . . . . . . . Reprogrammed . | . . . . . . . Reused . | . . . . . . . Traps Extracted . | . . . . . . . Installed . | . . . . . . . Triggered . | . . . . . . . Machines | -11 -10 -10 -9 -8 -7 -7 ---------- Run | Yrd Mat Min Mat Mat Fac Low Machines Disabled 5 | . . . . 4 1 . Max in Single Turn 1 | . . . . 1 1 . Machines Repaired . | . . . . . . . Machines Dismantled . | . . . . . . . Machines Sabotaged . | . . . . . . . Overloaded Fab Kills . | . . . . . . . Hacking | -11 -10 -10 -9 -8 -7 -7 --------- Run | Yrd Mat Min Mat Mat Fac Low Machines Accessed 14 | . 3 . 2 5 4 . Terminals 10 | . 2 . 2 4 2 . Fabricators 2 | . . . . . 2 . Repair Stations . | . . . . . . . Recycling Units 1 | . 1 . . . . . Scanalyzers . | . . . . . . . Garrison Access 1 | . . . . 1 . . Total Hacks 45 | . 8 . 7 13 17 . Successful 25 | . 6 . 2 5 12 . Failed 20 | . 2 . 5 8 5 . Catastrophic 5 | . 1 . . 2 2 . Database Lockouts . | . . . . . . . Manual 24 | . 7 . 1 5 11 . Terminals 38 | . 7 . 7 10 14 . Fabricators 3 | . . . . . 3 . Repair Stations . | . . . . . . . Recycling Units 1 | . 1 . . . . . Scanalyzers . | . . . . . . . Garrison Access 3 | . . . . 3 . . Terminal Hacks 15 | . 2 . 2 4 7 . Prototype ID Bank 5 | . 1 . 1 2 1 . Branch Access Points 3 | . 1 . . 1 1 . Emergency Access Points 1 | . . . . . 1 . Terminal Index 1 | . . . . . 1 . Alert Level 1 | . . . . . 1 . Unreport Threat 1 | . . . . . 1 . Locate Traps 2 | . . . . 1 1 . Recall Reinforcements 1 | . . . 1 . . . Fabricator Hacks 1 | . . . . . 1 . Network Status 1 | . . . . . 1 . Repair Station Hacks . | . . . . . . . Recycling Unit Hacks . | . . . . . . . Scanalyzer . | . . . . . . . Garrison Access Hacks . | . . . . . . . Unauthorized Hacks 9 | . 4 . . 1 4 . Terminals 8 | . 3 . . 1 4 . Track 1 | . 1 . . . . . Botnet 4 | . 1 . . 1 2 . Disrupt 1 | . . . . . 1 . Operators 2 | . 1 . . . 1 . Fabricators . | . . . . . . . Repair Stations . | . . . . . . . Recycling Units 1 | . 1 . . . . . Tunnel 1 | . 1 . . . . . Scanalyzers . | . . . . . . . Garrison Access . | . . . . . . . Data Cores Recovered . | . . . . . . . Used . | . . . . . . . Hacking Detections 13 | . 2 . 2 5 4 . Full Trace Events 2 | . . . 1 1 . . Feedback Events . | . . . . . . . Feedback Blocked . | . . . . . . . Robot Schematics Acquired . | . . . . . . . Robots Built . | . . . . . . . Authchips . | . . . . . . . Time . | . . . . . . . Total Robot Build Rating . | . . . . . . . Part Schematics Acquired . | . . . . . . . Parts Built . | . . . . . . . Authchips . | . . . . . . . Time . | . . . . . . . Total Part Build Rating . | . . . . . . . Parts Repaired . | . . . . . . . Time . | . . . . . . . Parts Recycled . | . . . . . . . Recycled Matter . | . . . . . . . Retrieved Matter . | . . . . . . . Retrieved Components . | . . . . . . . Parts Scanalyzed . | . . . . . . . Part Schematics Acquired . | . . . . . . . Parts Damaged . | . . . . . . . Bothacking | -11 -10 -10 -9 -8 -7 -7 ------------ Run | Yrd Mat Min Mat Mat Fac Low Used RIF Installer . | . . . . . . . Robots Hacked . | . . . . . . . Non-combat . | . . . . . . . Combat . | . . . . . . . Robot Hacks Applied . | . . . . . . . Relay Couplers Released . | . . . . . . . Fabnet Peak Effective % . | . . . . . . . Robots Rewired . | . . . . . . . Allies Hacked . | . . . . . . . Hacks Repelled . | . . . . . . . Allies | -11 -10 -10 -9 -8 -7 -7 -------- Run | Yrd Mat Min Mat Mat Fac Low Total Allies . | . . . . . . . Largest Group . | . . . . . . . Highest-Rated Group . | . . . . . . . Highest-Rated Ally . | . . . . . . . Total Orders . | . . . . . . . Ally Attacks . | . . . . . . . Total Damage . | . . . . . . . Kills . | . . . . . . . Allies Corrupted . | . . . . . . . Allies Melted . | . . . . . . . Intel | -11 -10 -10 -9 -8 -7 -7 ------- Run | Yrd Mat Min Mat Mat Fac Low Robot Analysis Total . | . . . . . . . Derelict Logs Recovered 4 | . . 1 . . . 3 Drone Launches . | . . . . . . . Drone Recoveries . | . . . . . . . Exploration | -11 -10 -10 -9 -8 -7 -7 ------------- Run | Yrd Mat Min Mat Mat Fac Low Turns Passed 3258 | 53 98 247 251 1137 988 484 Spaces Moved 2314 | 47 73 217 344 726 607 300 Core 164 | 3 . . 156 5 . . Treads . | . . . . . . . Legs 1628 | . . . . 721 607 300 Wheels 410 | 44 73 217 76 . . . Hover . | . . . . . . . Flight 112 | . . . 112 . . . Fastest Speed 35 | 50 90 90 35 50 122 122 Average Speed 110 | 88 90 91 55 132 122 122 Slowest Speed 193 | 100 90 95 95 193 122 122 Overloaded Moves . | . . . . . . . Propulsion Burnouts . | . . . . . . . Robots Hopped 8 | . . . 8 . . . Cave-ins Triggered . | . . . . . . . Exploration Rate (%) 29 | 5 14 45 35 50 10 46 Regions Visited 6 Branch Regions 2 Pre-discovered Areas 3 | . 1 1 . . . 1 Known Exits Taken 2 | . 1 . . . 1 . Unknown Exits Taken 4 | 1 . 1 1 1 . . Scrap Searched 5 | . . . . . . 5 Spaces Dug 2 | . . . . . 2 . Terrain Destroyed 73 | . . . 36 24 6 7 Melee 2 | . . . . . 2 . Projectile 32 | . . . . 21 4 7 AOE 39 | . . . 36 3 . . Terrain Rammed . | . . . . . . . Walls Destroyed . | . . . . . . . Machines Disabled . | . . . . . . . Actions | -11 -10 -10 -9 -8 -7 -7 --------- Run | Yrd Mat Min Mat Mat Fac Low Total 2789 | 55 84 236 380 837 817 380 Wait 268 | 2 . 1 21 19 173 52 Move 2293 | 46 72 216 328 725 606 300 Hop 7 | . . . 7 . . . Pick Up 27 | 1 1 3 2 15 4 1 Fast Attach 29 | 6 1 . 2 16 2 2 Attach 8 | . . . 2 3 2 1 Detach 3 | . . . 1 1 . 1 Swap 22 | . . 1 . 11 8 2 Drop 25 | . . 1 3 16 4 1 Fire 99 | . 10 14 14 31 16 14 Melee 8 | . . . . . 2 6 Ram . | . . . . . . . Kick . | . . . . . . . Crush . | . . . . . . . Escape Stasis . | . . . . . . . Rewire . | . . . . . . . Trap . | . . . . . . . Miscellaneous . | . . . . . . . Route ------- -11/Scrapyard -10/Materials (discovered 2 exits: *Min x2) -10/Mines -9/Materials (discovered 2 exits: *Mat / [*Min]) -8/Materials (discovered 2 exits: *Fac / *Sto) -7/Factory (discovered 2 exits: *Low x2) -7/Lower Caves History --------- Turn | Location | Event 18 | -11/Scrapyard | Discovered new exit (range 16) 54 | -11/Scrapyard | Entered Materials 115 | -10/Materials | Identified exit to Mines 152 | -10/Materials | Entered Mines 159 | -10/Mines | Received a Rocket Launcher from a helpful Derelict 182 | -10/Mines | Assembled infested the area 241 | -10/Mines | Learned location of Storage (-8) 303 | -10/Mines | Build established: Mutant 383 | -10/Mines | Discovered new exit (range 9) 399 | -10/Mines | Entered Materials 399 | -9/Materials | Evolved 2 slots: Utility x2 529 | -9/Materials | Lost 4 parts (1p1n2w) 591 | -9/Materials | Core integrity fell below 50% 614 | -9/Materials | Discovered new exit (range 7) 624 | -9/Materials | Discovered new exit (range 16) 650 | -9/Materials | Entered another Materials area 650 | -8/Materials | Evolved 2 slots: Propulsion x2 651 | -8/Materials | Identified exit to Storage 988 | -8/Materials | Discovered new exit (range 7) 1621 | -8/Materials | Garrison activated, responded to threat 1787 | -8/Materials | Entered Factory 1787 | -7/Factory | Evolved 2 slots: Utility x2 2027 | -7/Factory | Identified exit to Lower Caves 2775 | -7/Factory | Entered Lower Caves 3050 | -7/Lower Caves | Learned 12 Factory zone layouts 3090 | -7/Lower Caves | Learned location of 1 exit from Factory 3209 | -7/Lower Caves | Attacked by a faux Warlord 3243 | -7/Lower Caves | Core integrity fell below 50% 3256 | -7/Lower Caves | Core integrity fell below 20% 3259 | -7/Lower Caves | Destroyed by 5D-72Y(l) with Ripper Last Messages --------------- 03209_ 6C-DAL(M): "You are tresspassing on Warlord territory, MY territory! Guards, destroy it!" 03211_ Destroyed Carbon-fiber Leg. 03212_ Gauss Cannon severed. 03214_ Acquired Gauss Cannon. 03215_ Imp. Aluminum Leg destroyed. 03215_ SH-L2O(l) destroyed. 03221_ Critical hit (Burn: +80). 03228_ Hrd. Medium Armor Plating destroyed. 03229_ Lgt. Armor Plating destroyed. 03232_ Aluminum Leg destroyed. 03232_ Gauss Cannon destroyed. 03234_ Gauss Cannon severed. 03235_ Nuclear Core destroyed. 03240_ Critical hit (Burn: +37). 03244_ Titanium Leg severed. 03246_ Carbon-fiber Leg destroyed. 03250_ Critical hit (Burn: +37). 03257_ Adv. Targeting Computer severed. Map ----- +----------------------------------------------------+ | ???????????????????????????????????????????????# | | ???????????????????????????????????????????????# | | ???????????????????????????????????????????????# | | ???????????????????????????????????????????????# | | ??????????????????????????????????????????????## | | ??????????????????????????????????????????????# | | ??????????????????????????????????????????????# | | ?????????????????????????????????????????????????# | | ?????????????????????????????????????????????????? | | ?????????????????????????????????????????????????? | | ?????????????????????????????????????????????????# | | ???????????????????????????????????????????????### | | ???????????????????????????????????????????????# | | ???????????????????????????????????????????# ### | | ???????????????????????????????????????????# | | ????????????????????????????????????#? ???###### | | ???????????????????????????????????# ? ?????????# | | ??????????????????????????????????? ?????????# | | ????????????????????????####??????# ??????????## | | ????????????????????????# ##?????# # ???????????? | | ????????????????????????# #?????# ##??????????? | | ????????????????????????# ##????# #??????????? | | ???????????????????????## ##??## # ##??????##?? | | ???????????????????????# #?## #?????? ##? | | ???????????????????????# ]=% #?# #?????## #? | | ????????????????????????#@%g #?# # ###??## ## | | ????????????????????????##lM ### # #?## # | | ?????????????????????????## % ### | | ??????????????????????????## # # | | ???????????????# ####### % ;;# | | ???????????????# % ##### # | | ??????????????# ##???# # ## # | | ?????????????# #????# # ### ## | | ?????????????? #### ????## ## | | ?????????????? #???## ????## ## # # | | ??????????????? #??????# ????####### | | ??????????????? ## ????????# ??????????# ## # | | ??????????????? ??# ??????????##???####### # | | ????????????????#???#????????????????# | | ?????????????????????????????????????## ### | | ??????????????????????????????????????## ### | | ??????????????????????????????????????## # | | ????????????????????????????????####### | | ????????????????????????????????# # ## # ## | | ????????????????????????????????# # ###?# | | ????????????????????????????????# # ##????# | | ????????????????????????????????## # ##??????# | | ?????????????????????????????????#########???????? | | ?????????????????????????????????????????????????? | | ?????????????????????????????????????????????????? | +----------------------------------------------------+ Best States ------------- Heat Dissipation 38 Energy Generation 14 Energy Capacity 265 Matter Stores 300 Matter Capacity 300 Sight Range 20 Robot Scan Range 15 Terrain Scan Density 10 Armor Coverage 375 Evasion (%) 63 Targeting Accuracy 16 Matter Filtering 30 Offensive Hacking 10 Defensive Hacking 10 Item Schematics ----------------- None Robot Schematics ------------------ None Fabricated ------------ Nothing Alien Tech Used ----------------- None Achievements -------------- None Challenges ------------ None Game ------ Seed SpliceSwordLeg Manual? 0 Play Time 00:35:55 Cumulative 118.1 hours Start 2024.07.01 @ 18:11:39 End 2024.07.01 @ 18:44:47 Sessions 1 Manual Loads 0 Difficulty Rogue Special Mode None Game No. 132 Rogue 132 Adventurer 0 Explorer 0 Win Type - Total 1 Types 1/0/0/0/0/0/0/0/0 Lore% 50 Gallery% 51 Achievement% 44 Wizard Run 0 Options --------- Layout 1 ASCII 0 Keyboard 0 Movement Numpad Keybinds 0 Fullscreen 1 Font 24/Smallcaps Map View 50x35 Zoom Use 0% Tactical HUD 1 Map Filters NONE Filters NONE Steam 1 RUN: 70a6a694-743b-4998-91e3-e281114d7ac0